bitfinex/quotes_BTCUSD_20240623
["timestamp","ask_amount","ask_price","bid_price","bid_amount"]
[1719131335863,1.54938513,64487.0,64486.0,0.000935]
[1719131336060,1.37827487,64487.0,64486.0,0.000935]
[1719131336269,1.54938513,64487.0,64486.0,0.000935]
[1719131337160,1.39214523,64487.0,64486.0,0.000935]
[1719131337365,1.45277359,64487.0,64486.0,0.000935]
[1719131338926,1.54927616,64487.0,64486.0,0.000935]
[1719131341213,1.39752513,64487.0,64486.0,0.000935]
[1719131341413,1.54924273,64487.0,64486.0,0.000935]
[1719131344495,1.54912047,64487.0,64486.0,0.000935]
[1719131344883,1.54912279,64487.0,64486.0,0.000935]
[1719131346000,1.37826841,64487.0,64486.0,0.000935]
[1719131346342,1.54898454,64487.0,64486.0,0.000935]
[1719131347548,1.31755742,64487.0,64486.0,0.000935]
[1719131347755,1.54908438,64487.0,64486.0,0.000935]
[1719131347954,1.54908438,64487.0,64486.0,0.01238853]
[1719131348134,1.54908438,64487.0,64486.0,0.000935]
[1719131350807,1.37826925,64487.0,64486.0,0.000935]
[1719131351009,1.54889771,64487.0,64486.0,0.000935]
[1719131353956,1.49387668,64487.0,64486.0,0.000935]
[1719131354157,1.54891123,64487.0,64486.0,0.000935]
[1719131354364,1.37827273,64487.0,64486.0,0.000935]
[1719131354541,1.54891129,64487.0,64486.0,0.000935]
[1719131354948,1.22103497,64487.0,64486.0,0.000935]
[1719131355150,1.45243835,64487.0,64486.0,0.000935]
[1719131355329,1.45243835,64487.0,64486.0,0.01238853]
[1719131355530,1.54890741,64487.0,64486.0,0.000935]
[1719131357214,1.22103497,64487.0,64486.0,0.000935]
[1719131357445,1.54891283,64487.0,64486.0,0.000935]
[1719131357598,1.54891283,64487.0,64486.0,0.01238853]
[1719131357795,1.54891283,64487.0,64486.0,0.000935]
[1719131360378,1.37828017,64487.0,64486.0,0.000935]
[1719131360591,1.54897547,64487.0,64486.0,0.000935]
[1719131363436,1.37257666,64487.0,64486.0,0.000935]
[1719131363615,1.54931566,64487.0,64486.0,0.000935]
[1719131363800,1.24030907,64487.0,64486.0,0.000935]
[1719131364015,1.4527065,64487.0,64486.0,0.01238853]
[1719131364242,1.4527065,64487.0,64486.0,0.000935]
[1719131364847,1.37828119,64487.0,64486.0,0.000935]
[1719131365045,1.54929435,64487.0,64486.0,0.000935]
[1719131366722,1.22103497,64487.0,64486.0,0.000935]
[1719131366921,1.54931597,64487.0,64486.0,0.000935]
[1719131367122,1.54931597,64487.0,64486.0,0.01238853]
[1719131367326,1.54931597,64487.0,64486.0,0.000935]
[1719131369998,1.54931245,64487.0,64486.0,0.000935]
[1719131373136,1.22103497,64487.0,64486.0,0.000935]
[1719131373345,1.54930701,64487.0,64486.0,0.000935]
[1719131373532,1.54930581,64487.0,64486.0,0.01238853]
[1719131373725,1.54930581,64487.0,64486.0,0.000935]
[1719131374743,1.54930803,64487.0,64486.0,0.000935]
[1719131376362,1.22103497,64487.0,64486.0,0.000935]
[1719131376540,1.549318,64487.0,64486.0,0.000935]
[1719131376740,1.549318,64487.0,64486.0,0.01238853]
[1719131376896,1.549318,64487.0,64486.0,0.000935]
[1719131379549,1.54930749,64487.0,64486.0,0.000935]
[1719131382568,1.5495388,64487.0,64486.0,0.000935]
[1719131382958,1.3782894,64487.0,64486.0,0.000935]
[1719131383210,1.55049297,64487.0,64486.0,0.000935]
[1719131384236,1.55052364,64487.0,64486.0,0.000935]
[1719131385609,1.39326921,64487.0,64486.0,0.000935]
[1719131385814,1.55068364,64487.0,64486.0,0.000935]
[1719131389071,1.55068349,64487.0,64486.0,0.000935]
[1719131392090,1.22188497,64487.0,64486.0,0.000935]
[1719131392292,1.55062152,64487.0,64486.0,0.0126402]
[1719131392484,1.22188497,64487.0,64486.0,0.0126402]
[1719131392854,1.55062017,64487.0,64486.0,0.0126402]
[1719131393224,1.3933658,64487.0,64486.0,0.0126402]
[1719131393842,1.2966483,64487.0,64486.0,0.0126402]
[1719131395370,1.29621956,64487.0,64486.0,0.0126402]
[1719131401417,1.22188497,64487.0,64486.0,0.0126402]
[1719131401590,1.26883286,64487.0,64486.0,0.0126402]
[1719131402757,1.26883329,64487.0,64486.0,0.0126402]
[1719131403881,1.19450655,64487.0,64486.0,0.0126402]
[1719131404079,1.26891815,64487.0,64486.0,0.0126402]
[1719131406864,1.26907725,64487.0,64486.0,0.0126402]
[1719131410130,1.19450655,64487.0,64486.0,0.0126402]
[1719131410262,1.26909236,64487.0,64486.0,0.0126402]
[1719131410464,1.21385613,64487.0,64486.0,0.0126402]
[1719131410711,1.26909239,64487.0,64486.0,0.0126402]
[1719131413320,1.26890736,64487.0,64486.0,0.0126402]
[1719131414248,1.36547548,64487.0,64486.0,0.0126402]
[1719131415219,1.36550477,64487.0,64486.0,0.0126402]
[1719131416597,1.31034935,64487.0,64486.0,0.0126402]
[1719131416816,1.48135025,64487.0,64486.0,0.0126402]
[1719131417444,1.48135025,64487.0,64486.0,0.000935]
[1719131417650,1.63855806,64487.0,64486.0,0.000935]
[1719131419580,1.63893604,64487.0,64486.0,0.000935]
[1719131419983,1.6389363,64487.0,64486.0,0.000935]
[1719131421308,1.6390644,64487.0,64486.0,0.000935]
[1719131422129,1.5232216,64487.0,64486.0,0.000935]
[1719131422727,1.52320854,64487.0,64486.0,0.000935]
[1719131424417,1.36601307,64487.0,64486.0,0.00088457]
[1719131425221,1.56683321,64487.0,64486.0,0.00088457]
[1719131425853,1.56527282,64487.0,64486.0,0.00088457]
[1719131427096,1.56627282,64487.0,64486.0,0.00188457]
[1719131427697,1.56527282,64487.0,64486.0,0.00088457]
[1719131427837,1.40808646,64487.0,64486.0,0.00088457]
[1719131428039,1.40908646,64487.0,64486.0,0.00188457]
[1719131429019,1.40923906,64487.0,64486.0,0.00188457]
[1719131429376,1.40904843,64487.0,64486.0,0.00188457]
[1719131430188,1.56621968,64487.0,64486.0,0.00188457]
[1719131430385,1.56521968,64487.0,64486.0,0.00088457]
[1719131430626,1.56721968,64487.0,64486.0,0.00188457]
[1719131432111,1.24014,64487.0,64486.0,0.00188457]
[1719131432329,1.56700335,64487.0,64486.0,0.00188457]
[1719131435298,1.24014,64487.0,64486.0,0.00188457]
[1719131435506,1.56676156,64487.0,64486.0,0.00188457]
[1719131438444,1.40991161,64487.0,64486.0,0.00188457]
[1719131438642,1.56707054,64487.0,64486.0,0.00188457]
[1719131440170,1.56752221,64487.0,64486.0,0.00188457]
[1719131441700,1.56751498,64487.0,64486.0,0.00188457]
[1719131441905,1.56751526,64487.0,64486.0,0.00188457]
[1719131444407,1.41035758,64487.0,64486.0,0.00188457]
[1719131444607,1.24014,64487.0,64486.0,0.00188457]
[1719131444807,1.41070326,64487.0,64486.0,0.00188457]
[1719131445867,1.35890326,64487.0,64486.0,0.00188457]
[1719131446095,1.26246044,64487.0,64486.0,0.00188457]
[1719131446325,1.31426044,64487.0,64486.0,0.00188457]
[1719131446525,1.26246044,64487.0,64486.0,0.00188457]
[1719131446768,1.47143264,64487.0,64486.0,0.00188457]
[1719131447365,1.56787546,64487.0,64486.0,0.00188457]
[1719131447871,1.56912571,64487.0,64486.0,0.00188457]
[1719131448254,1.56990948,64487.0,64486.0,0.00188457]
[1719131449494,1.56977368,64487.0,64486.0,0.00188457]
[1719131451074,1.5697852,64487.0,64486.0,0.00188457]
[1719131451729,1.5179852,64487.0,64486.0,0.00188457]
[1719131451931,1.5697852,64487.0,64486.0,0.00188457]
[1719131453318,1.5697852,64487.0,64486.0,0.07868457]
[1719131454077,1.39732652,64487.0,64486.0,0.07868457]
[1719131454282,1.56999141,64487.0,64486.0,0.07868457]
[1719131455277,1.41279406,64487.0,64486.0,0.07868457]
[1719131457287,1.24014,64487.0,64486.0,0.07868457]
[1719131457490,1.41277178,64487.0,64486.0,0.07868457]
[1719131457690,1.39291725,64487.0,64486.0,0.07868457]
[1719131457893,1.41277163,64487.0,64486.0,0.07868457]
[1719131460568,1.41273581,64487.0,64486.0,0.07868457]
[1719131462739,1.41289866,64487.0,64486.0,0.07868457]
[1719131466115,1.24014,64487.0,64486.0,0.07868457]
[1719131466320,1.57137187,64487.0,64486.0,0.07868457]
[1719131467323,1.41389062,64487.0,64486.0,0.07868457]
[1719131467815,1.5711217,64487.0,64486.0,0.07868457]
[1719131468545,1.41389062,64487.0,64486.0,0.07868457]
[1719131468914,1.57110058,64487.0,64486.0,0.07868457]
[1719131470570,1.51930058,64487.0,64486.0,0.07868457]
[1719131470720,1.4138747,64487.0,64486.0,0.07868457]
[1719131471557,1.31648287,64487.0,64486.0,0.07868457]
[1719131471939,1.24014,64487.0,64486.0,0.07868457]
[1719131472139,1.31779101,64487.0,64486.0,0.07868457]
[1719131472366,1.26599101,64487.0,64486.0,0.09038975]
[1719131472570,1.31779101,64487.0,64486.0,0.09038975]
[1719131475153,1.31867014,64487.0,64486.0,0.09038975]
[1719131475486,1.31866912,64487.0,64486.0,0.09038975]
[1719131475694,1.31873478,64487.0,64486.0,0.09038975]
[1719131476873,1.31874044,64487.0,64486.0,0.07868457]
[1719131477051,1.31874044,64487.0,64486.0,0.09038975]
[1719131478244,1.24014,64487.0,64486.0,0.09038975]
[1719131478446,1.31896022,64487.0,64486.0,0.09038975]
[1719131478767,1.31896022,64487.0,64486.0,0.08409025]
[1719131481357,0.9355025,64487.0,64486.0,0.08409025]
[1719131481695,0.9355025,64487.0,64486.0,0.08502525]
[1719131481696,1.00872984,64487.0,64486.0,0.08502525]
[1719131484591,1.00906177,64487.0,64486.0,0.08502525]
[1719131484935,1.0090619,64487.0,64486.0,0.08502525]
[1719131487658,0.93,64487.0,64486.0,0.08502525]
[1719131487784,1.00977727,64487.0,64486.0,0.08502525]
[1719131490913,1.01052527,64487.0,64486.0,0.08502525]
[1719131493972,0.95244599,64487.0,64486.0,0.08502525]
[1719131494172,1.01063277,64487.0,64486.0,0.08502525]
[1719131494348,0.93,64487.0,64486.0,0.08502525]
[1719131494562,1.01063275,64487.0,64486.0,0.08502525]
[1719131496624,1.01063275,64487.0,64486.0,0.07332007]
[1719131496926,1.01063275,64487.0,64486.0,0.08502513]
[1719131497090,1.01062821,64487.0,64486.0,0.08502513]
[1719131500348,0.95243011,64487.0,64486.0,0.08502513]
[1719131500555,1.01060163,64487.0,64486.0,0.08502513]
[1719131503530,0.93,64487.0,64486.0,0.08502513]
[1719131503699,1.01059426,64487.0,64486.0,0.08502513]
[1719131503901,0.93,64487.0,64486.0,0.08502513]
[1719131504080,1.01059501,64487.0,64486.0,0.08502513]
[1719131505251,1.01059542,64487.0,64486.0,0.08502513]
[1719131506591,0.93,64487.0,64486.0,0.08502513]
[1719131506793,1.01058526,64487.0,64486.0,0.08502513]
[1719131508809,0.95878526,64487.0,64486.0,0.08502513]
[1719131509011,1.01058526,64487.0,64486.0,0.08502513]
[1719131509538,0.95878526,64487.0,64486.0,0.08502513]
[1719131509694,1.01058526,64487.0,64486.0,0.08502513]
[1719131513422,1.01136098,64487.0,64486.0,0.08502513]
[1719131513907,1.01136098,64487.0,64486.0,1.40502513]
[1719131514813,1.0113693,64487.0,64486.0,1.40502513]
[1719131516175,0.93,64487.0,64486.0,1.40502513]
[1719131516380,1.0113752,64487.0,64486.0,1.40502513]
[1719131519254,0.93,64487.0,64486.0,1.40502513]
[1719131519457,1.01136381,64487.0,64486.0,1.40502513]
[1719131521875,1.01135985,64487.0,64486.0,1.40502513]
[1719131522227,0.68909538,64487.0,64486.0,1.40502513]
[1719131522927,0.84416538,64487.0,64486.0,1.40502513]
[1719131523347,0.84415749,64487.0,64486.0,1.40502513]
[1719131524528,0.94415749,64487.0,64486.0,1.40502513]
[1719131524931,0.94296763,64487.0,64486.0,1.40502513]
[1719131527877,0.94298998,64487.0,64486.0,1.40502513]
[1719131530941,0.94298998,64487.0,64486.0,1.33264006]
[1719131531137,0.94282208,64487.0,64486.0,1.33264006]
[1719131531349,0.86280553,64487.0,64486.0,1.33264006]
[1719131531541,1.07794093,64487.0,64486.0,1.33264006]
[1719131531739,0.94282249,64487.0,64486.0,1.33264006]
[1719131532258,1.10005151,64487.0,64486.0,1.33264006]
[1719131532657,1.1990122,64487.0,64486.0,1.33264006]
[1719131534187,1.19401636,64487.0,64486.0,1.33264006]
[1719131534985,1.50415636,64487.0,64486.0,1.33264006]
[1719131535559,1.17294553,64487.0,64486.0,1.33264006]
[1719131535760,1.42768222,64487.0,64486.0,1.33264006]
[1719131536578,1.44809859,64487.0,64486.0,1.33264006]
[1719131536782,1.50435116,64487.0,64486.0,1.33264006]
[1719131538002,1.3301502,64487.0,64486.0,1.33264006]
[1719131539708,1.34744012,64487.0,64486.0,1.33264006]
[1719131540722,1.32691855,64487.0,64486.0,1.33264006]
[1719131540967,1.17294553,64487.0,64486.0,1.33264006]
[1719131542710,1.27833902,64487.0,64486.0,1.33264006]
[1719131542882,1.33013824,64487.0,64486.0,1.33264006]
[1719131544703,1.50624184,64487.0,64486.0,1.33264006]
[1719131545676,1.50709184,64487.0,64486.0,1.33264006]
[1719131546526,1.50754369,64487.0,64486.0,1.33264006]
[1719131546837,1.35037418,64487.0,64486.0,1.33264006]
[1719131547039,1.50754317,64487.0,64486.0,1.33264006]
[1719131547969,1.50618661,64487.0,64486.0,1.33264006]
[1719131548316,1.26239108,64487.0,64486.0,1.33264006]
[1719131548726,1.57253108,64487.0,64486.0,1.33264006]
[1719131549712,1.41511111,64487.0,64486.0,1.33264006]
[1719131550060,1.57226961,64487.0,64486.0,1.33264006]
[1719131550266,1.41511111,64487.0,64486.0,1.33264006]
[1719131550473,1.57226961,64487.0,64486.0,1.33264006]
[1719131551017,1.52226961,64487.0,64486.0,1.33264006]
[1719131551242,1.36511111,64487.0,64486.0,1.33264006]
[1719131552967,1.36324568,64487.0,64486.0,1.33264006]
[1719131553171,1.36324559,64487.0,64486.0,1.33264006]
[1719131555981,1.13834,64487.0,64486.0,1.33264006]
[1719131556192,1.36323844,64487.0,64486.0,1.33264006]
[1719131556438,1.19014,64487.0,64486.0,1.33264006]
[1719131556606,1.36355688,64487.0,64486.0,1.33264006]
[1719131559119,1.19014,64487.0,64486.0,1.33264006]
[1719131559337,1.36274932,64487.0,64486.0,1.33264006]
[1719131560260,1.5198972,64487.0,64486.0,1.33264006]
[1719131560473,1.36274932,64487.0,64486.0,1.33264006]
[1719131561388,1.5198972,64487.0,64486.0,1.33264006]
[1719131561789,1.36274932,64487.0,64486.0,1.33264006]
[1719131562144,1.5198972,64487.0,64486.0,1.33264006]
[1719131562362,1.19014,64487.0,64486.0,1.33264006]
[1719131562513,1.5199738,64487.0,64486.0,1.33264006]
[1719131562924,1.4681738,64487.0,64486.0,1.40954006]
[1719131563132,1.36281888,64487.0,64486.0,1.40954006]
[1719131563912,0.95560204,64487.0,64486.0,1.40954006]
[1719131565406,0.88,64487.0,64486.0,1.40954006]
[1719131565614,0.95603065,64487.0,64486.0,1.40954006]
[1719131566009,0.95603056,64487.0,64486.0,1.40954006]
[1719131567106,0.95603592,64487.0,64486.0,1.40954006]
[1719131568632,0.88,64487.0,64486.0,1.40954006]
[1719131568838,0.95635442,64487.0,64486.0,1.40954006]
[1719131570744,0.95635442,64487.0,64486.0,1.47774006]
[1719131571717,0.95621075,64487.0,64486.0,1.47774006]
[1719131572605,0.90441075,64487.0,64486.0,1.47774006]
[1719131572782,0.95621075,64487.0,64486.0,1.47774006]
[1719131574813,0.95617958,64487.0,64486.0,1.47774006]
[1719131575244,0.93601474,64487.0,64486.0,1.47774006]
[1719131575441,0.95617958,64487.0,64486.0,1.47774006]
[1719131576557,0.95621969,64487.0,64486.0,1.47774006]
[1719131578088,0.95620908,64487.0,64486.0,1.47774006]
[1719131580771,0.88,64487.0,64486.0,1.47774006]
[1719131580988,0.9561954,64487.0,64486.0,1.47774006]
[1719131583754,0.88,64487.0,64486.0,1.47774006]
[1719131583958,0.95613466,64487.0,64486.0,1.47774006]
[1719131586953,0.95604803,64487.0,64486.0,1.47774006]
[1719131589754,0.88,64487.0,64486.0,1.47774006]
[1719131589909,0.95602153,64487.0,64486.0,1.47774006]
[1719131590506,0.95602153,64487.0,64486.0,1.40954006]
[1719131592945,0.88,64487.0,64486.0,1.40954006]
[1719131593167,0.95583702,64487.0,64486.0,1.40954006]
[1719131593371,0.95583715,64487.0,64486.0,1.40954006]
[1719131594471,0.88,64487.0,64486.0,1.40954006]
[1719131594691,0.95541612,64487.0,64486.0,1.40954006]
[1719131596039,0.95542982,64487.0,64486.0,1.40954006]
[1719131599235,0.95544128,64487.0,64486.0,1.40954006]
[1719131601189,0.95556815,64487.0,64486.0,1.40954006]
[1719131602435,0.88,64487.0,64486.0,1.40954006]
[1719131602638,0.95555076,64487.0,64486.0,1.40954006]
[1719131602799,0.95555089,64487.0,64486.0,1.40954006]
[1719131604719,0.95555089,64487.0,64486.0,1.33264006]
[1719131605618,0.95238218,64487.0,64486.0,1.33264006]
[1719131608272,1.10960499,64487.0,64486.0,1.33264006]
[1719131608624,1.11010122,64487.0,64486.0,1.33264006]
[1719131611713,1.26317016,64487.0,64486.0,1.33264006]
[1719131611973,1.42041787,64487.0,64486.0,1.33264006]
[1719131612244,1.4620018,64487.0,64486.0,1.33264006]
[1719131612423,1.51652204,64487.0,64486.0,1.33264006]
[1719131613186,1.34738782,64487.0,64486.0,1.33264006]
[1719131613389,1.51632149,64487.0,64486.0,1.33264006]
[1719131615022,1.51634375,64487.0,64486.0,1.33264006]
[1719131618184,1.51637898,64487.0,64486.0,1.33264006]
[1719131621232,1.42049003,64487.0,64486.0,1.33264006]
[1719131621431,1.51650746,64487.0,64486.0,1.33264006]
[1719131621638,1.46198593,64487.0,64486.0,1.33264006]
[1719131621836,1.51650597,64487.0,64486.0,1.33264006]
[1719131622787,1.51647178,64487.0,64486.0,1.33264006]
[1719131624326,1.34736931,64487.0,64486.0,1.33264006]
[1719131624528,1.67362252,64487.0,64486.0,1.33264006]
[1719131627674,1.67362342,64487.0,64486.0,1.33264006]
[1719131629009,1.51639411,64487.0,64486.0,1.33264006]
[1719131630688,1.51641562,64487.0,64486.0,1.33264006]
[1719131632252,1.51639024,64487.0,64486.0,1.33264006]
[1719131633824,1.51637186,64487.0,64486.0,1.33264006]
[1719131636952,1.24461491,64487.0,64486.0,1.33264006]
[1719131637132,1.20653166,64487.0,64486.0,1.33264006]
[1719131637355,0.99749943,64487.0,64486.0,1.41034006]
[1719131637560,1.04929943,64487.0,64486.0,1.41034006]
[1719131638394,0.9532327,64487.0,64486.0,1.41034006]
[1719131640487,0.88,64487.0,64486.0,1.41034006]
[1719131640650,0.95415342,64487.0,64486.0,1.41034006]
[1719131642306,0.95415499,64487.0,64486.0,1.41034006]
[1719131642531,0.95414123,64487.0,64486.0,1.41034006]
[1719131644407,0.90234123,64487.0,64486.0,1.41034006]
[1719131644607,0.95414123,64487.0,64486.0,1.41034006]
[1719131645645,0.95414366,64487.0,64486.0,1.41034006]
[1719131648696,0.88,64487.0,64486.0,1.41034006]
[1719131649048,1.20915802,64487.0,64486.0,1.33264006]
[1719131649271,0.95394161,64487.0,64486.0,1.33264006]
[1719131649721,1.26408161,64487.0,64486.0,1.33264006]
[1719131650447,1.36042472,64487.0,64486.0,1.33264006]
[1719131651653,1.19014,64487.0,64486.0,1.33264006]
[1719131651859,1.36028086,64487.0,64486.0,1.33264006]
[1719131654810,1.19014,64487.0,64486.0,1.33264006]
[1719131655012,1.36043145,64487.0,64486.0,1.33264006]
[1719131658039,1.36047167,64487.0,64486.0,1.33264006]
[1719131658436,1.51770594,64487.0,64486.0,1.33264006]
[1719131659836,1.51775978,64487.0,64486.0,1.33264006]
[1719131661383,1.53679353,64487.0,64486.0,1.33264006]
[1719131661582,1.51775184,64487.0,64486.0,1.33264006]
[1719131663003,1.36050885,64487.0,64486.0,1.33264006]
[1719131664159,1.2641213,64487.0,64486.0,1.33264006]
[1719131664498,0.77293,64487.0,64486.0,1.33264006]
[1719131664633,1.09862567,64487.0,64486.0,1.33264006]
[1719131664839,1.40876567,64487.0,64486.0,1.33264006]
[1719131665865,1.31230159,64487.0,64486.0,1.33264006]
[1719131667677,1.40885839,64487.0,64486.0,1.33264006]
[1719131667874,1.23814,64487.0,64486.0,1.33264006]
[1719131668065,1.31236679,64487.0,64486.0,1.33264006]
[1719131669211,1.40896934,64487.0,64486.0,1.33264006]
[1719131670678,1.31244458,64487.0,64486.0,1.33264006]
[1719131670849,1.40897133,64487.0,64486.0,1.33264006]
[1719131672139,1.31244599,64487.0,64486.0,1.33264006]
[1719131673222,1.46967383,64487.0,64486.0,1.33264006]
[1719131673426,1.40897133,64487.0,64486.0,1.33264006]
[1719131673896,1.40895741,64487.0,64486.0,1.33264006]
[1719131675140,1.56618104,64487.0,64486.0,1.33264006]
[1719131675346,1.40895741,64487.0,64486.0,1.33264006]
[1719131676660,1.31243617,64487.0,64486.0,1.33264006]
[1719131676856,1.25734048,64487.0,64486.0,1.320935]
[1719131677057,1.25734048,64487.0,64486.0,1.33447048]
[1719131677058,1.40897113,64487.0,64486.0,1.33447048]
[1719131678479,1.23814,64487.0,64486.0,1.33447048]
[1719131678683,1.40906308,64487.0,64486.0,1.33447048]
[1719131680120,1.31251039,64487.0,64486.0,1.33447048]
[1719131680322,1.40907367,64487.0,64486.0,1.33447048]
[1719131681118,1.56628742,64487.0,64486.0,1.33447048]
[1719131683441,1.56628419,64487.0,64486.0,1.33447048]
[1719131686010,1.56620288,64487.0,64486.0,1.33447048]
[1719131686750,1.56620283,64487.0,64486.0,1.33447048]
[1719131686938,1.40900716,64487.0,64486.0,1.33447048]
[1719131687119,1.56622476,64487.0,64486.0,1.33447048]
[1719131688088,1.56616031,64487.0,64486.0,1.33447048]
[1719131689637,1.23814,64487.0,64486.0,1.33447048]
[1719131689840,1.56622694,64487.0,64486.0,1.33447048]
[1719131690410,1.40901392,64487.0,64486.0,1.33447048]
[1719131690831,1.56622831,64487.0,64486.0,1.33447048]
[1719131691032,1.56622831,64487.0,64486.0,1.41047048]
[1719131692823,1.56623146,64487.0,64486.0,1.41047048]
[1719131694443,1.40901707,64487.0,64486.0,1.41047048]
[1719131694643,1.56623707,64487.0,64486.0,1.41047048]
[1719131694833,1.40901707,64487.0,64486.0,1.41047048]
[1719131695496,1.31247809,64487.0,64486.0,1.41047048]
[1719131695895,1.40909204,64487.0,64486.0,1.41047048]
[1719131696433,1.56631294,64487.0,64486.0,1.41047048]
[1719131697637,1.56620172,64487.0,64486.0,1.41047048]
[1719131698515,1.40897745,64487.0,64486.0,1.41047048]
[1719131698716,1.56620087,64487.0,64486.0,1.41047048]
[1719131699134,1.56619567,64487.0,64486.0,1.41047048]
[1719131700522,1.40897297,64487.0,64486.0,1.41047048]
[1719131701469,1.56632072,64487.0,64486.0,1.41047048]
[1719131701677,1.15618072,64487.0,64486.0,1.41047048]
[1719131701927,0.9989512,64487.0,64486.0,1.41047048]
[1719131702103,1.3090912,64487.0,64486.0,1.41047048]
[1719131702778,1.21252988,64487.0,64486.0,1.41047048]
[1719131703948,1.31252988,64487.0,64486.0,1.41047048]
[1719131704491,1.40916791,64487.0,64486.0,1.41047048]
[1719131704708,1.40916791,64487.0,64486.0,1.33447048]
[1719131704994,1.40920675,64487.0,64486.0,1.33447048]
[1719131706048,1.40926544,64487.0,64486.0,1.33447048]
[1719131707202,1.23814,64487.0,64486.0,1.33447048]
[1719131707397,1.3540307,64487.0,64486.0,1.33447048]
[1719131707696,1.40921292,64487.0,64486.0,1.33447048]
[1719131710524,1.40927402,64487.0,64486.0,1.33447048]
[1719131713339,1.23814,64487.0,64486.0,1.33447048]
[1719131713540,1.40748005,64487.0,64486.0,1.33447048]
[1719131713800,1.23814,64487.0,64486.0,1.33447048]
[1719131714027,1.40749629,64487.0,64486.0,1.33447048]
[1719131715214,1.31140105,64487.0,64486.0,1.33447048]
[1719131716472,1.40751532,64487.0,64486.0,1.33447048]
[1719131717880,1.31141443,64487.0,64486.0,1.33447048]
[1719131718665,1.25961443,64487.0,64486.0,1.33447048]
[1719131718863,1.31141443,64487.0,64486.0,1.33447048]
[1719131719633,1.40645928,64487.0,64486.0,1.33447048]
[1719131721160,1.31067428,64487.0,64486.0,1.33447048]
[1719131721601,1.23814,64487.0,64486.0,1.33447048]
[1719131721770,1.40669349,64487.0,64486.0,1.33447048]
[1719131722835,1.40733044,64487.0,64486.0,1.33447048]
[1719131723237,1.35553044,64487.0,64486.0,1.33447048]
[1719131723432,1.40733044,64487.0,64486.0,1.33447048]
[1719131724067,1.31128481,64487.0,64486.0,1.33447048]
[1719131724593,1.40736701,64487.0,64486.0,1.33447048]
[1719131725557,1.40736701,64487.0,64486.0,1.42127048]
[1719131726024,1.40736994,64487.0,64486.0,1.42127048]
[1719131727480,1.31131268,64487.0,64486.0,1.42127048]
[1719131729123,1.40740403,64487.0,64486.0,1.42127048]
[1719131730378,1.31133655,64487.0,64486.0,1.42127048]
[1719131732162,1.40739644,64487.0,64486.0,1.42127048]
[1719131732361,1.40739644,64487.0,64486.0,1.33447048]
[1719131733475,1.31133128,64487.0,64486.0,1.33447048]
[1719131733863,1.40739301,64487.0,64486.0,1.33447048]
[1719131735246,1.23814,64487.0,64486.0,1.33447048]
[1719131735441,1.40730292,64487.0,64486.0,1.33447048]
[1719131736609,1.31126565,64487.0,64486.0,1.33447048]
[1719131738450,1.25669827,64487.0,64486.0,1.33447048]
[1719131738684,1.4071973,64487.0,64486.0,1.33447048]
[1719131739774,1.31119141,64487.0,64486.0,1.33447048]
[1719131741095,1.4071973,64487.0,64486.0,1.33447048]
[1719131741498,1.40719012,64487.0,64486.0,1.33447048]
[1719131741880,1.40704058,64487.0,64486.0,1.33447048]
[1719131743143,1.40698948,64487.0,64486.0,1.33447048]
[1719131744577,1.23814,64487.0,64486.0,1.33447048]
[1719131744782,1.40662964,64487.0,64486.0,1.33447048]
[1719131745968,1.31079216,64487.0,64486.0,1.33447048]
[1719131750895,1.40641158,64487.0,64486.0,1.33447048]
[1719131751241,1.23814,64487.0,64486.0,1.33447048]
[1719131751445,1.40641156,64487.0,64486.0,1.33447048]
[1719131752440,1.40640027,64487.0,64486.0,1.33447048]
[1719131753947,1.31063137,64487.0,64486.0,1.33447048]
[1719131757057,1.38816328,64487.0,64486.0,1.42427048]
[1719131757206,1.40645299,64487.0,64486.0,1.42427048]
[1719131758412,1.31066827,64487.0,64486.0,1.42427048]
[1719131760207,1.23814,64487.0,64486.0,1.42427048]
[1719131760355,1.09681191,64487.0,64486.0,1.42427048]
[1719131760560,1.09694049,64487.0,64486.0,1.42427048]
[1719131761675,0.928,64487.0,64486.0,1.42427048]
[1719131761829,1.096914,64487.0,64486.0,1.42427048]
[1719131762034,1.407054,64487.0,64486.0,1.42427048]
[1719131762622,1.096914,64487.0,64486.0,1.42427048]
[1719131763244,1.00094889,64487.0,64486.0,1.42427048]
[1719131763446,1.15823486,64487.0,64486.0,1.42427048]
[1719131764543,1.25419997,64487.0,64486.0,1.42427048]
[1719131765662,1.08528237,64487.0,64486.0,1.42427048]
[1719131765859,1.25375961,64487.0,64486.0,1.42427048]
[1719131768687,0.928,64487.0,64486.0,1.42427048]
[1719131768971,1.15782199,64487.0,64486.0,1.42427048]
[1719131769172,0.928,64487.0,64486.0,1.42427048]
[1719131769344,1.25361436,64487.0,64486.0,1.42427048]
[1719131771975,1.25348965,64487.0,64486.0,1.42427048]
[1719131772335,1.25334644,64487.0,64486.0,1.42427048]
[1719131772538,1.09606891,64487.0,64486.0,1.42427048]
[1719131772940,1.25334551,64487.0,64486.0,1.42427048]
[1719131773561,1.09606891,64487.0,64486.0,1.42427048]
[1719131773738,1.25335722,64487.0,64486.0,1.42427048]
[1719131774586,1.25321842,64487.0,64486.0,1.42427048]
[1719131775029,1.08514556,64487.0,64486.0,1.42427048]
[1719131775241,1.25321923,64487.0,64486.0,1.42427048]
[1719131776252,1.09593046,64487.0,64486.0,1.42427048]
[1719131776492,1.25322187,64487.0,64486.0,1.42427048]
[1719131776698,1.15750391,64487.0,64486.0,1.42427048]
[1719131777859,1.25322187,64487.0,64486.0,1.42427048]
[1719131778038,0.92785679,64487.0,64486.0,1.42427048]
[1719131778242,1.15762288,64487.0,64486.0,1.42427048]
[1719131778438,1.00033116,64487.0,64486.0,1.42427048]
[1719131778758,1.0959692,64487.0,64486.0,1.42427048]
[1719131778977,1.09088242,64487.0,64486.0,1.42427048]
[1719131779852,1.09089893,64487.0,64486.0,1.42427048]
[1719131780459,1.24819293,64487.0,64486.0,1.42427048]
[1719131780677,1.09089893,64487.0,64486.0,1.42427048]
[1719131780880,1.24819305,64487.0,64486.0,1.42427048]
[1719131781283,1.24819509,64487.0,64486.0,1.42427048]
[1719131781647,0.92277001,64487.0,64486.0,1.42427048]
[1719131782006,1.15076803,64487.0,64486.0,1.42427048]
[1719131783195,1.24578181,64487.0,64486.0,1.42427048]
[1719131783394,1.08848724,64487.0,64486.0,1.42427048]
[1719131784562,1.08652344,64487.0,64486.0,1.42427048]
[1719131786012,0.99209723,64487.0,64486.0,1.42427048]
[1719131787681,1.08666528,64487.0,64486.0,1.42427048]
[1719131788069,1.08666501,64487.0,64486.0,1.42427048]
[1719131789425,1.08654638,64487.0,64486.0,1.42427048]
[1719131790808,1.08626273,64487.0,64486.0,1.42427048]
[1719131792203,0.9401148,64487.0,64486.0,1.42427048]
[1719131792404,0.9919148,64487.0,64486.0,1.42427048]
[1719131793030,1.3020548,64487.0,64486.0,1.42427048]
[1719131793837,1.39653506,64487.0,64486.0,1.42427048]
[1719131795367,1.30214769,64487.0,64486.0,1.33447048]